fUST/lending_fUST_20240519
["ID","MTS","AMOUNT","RATE_DAILY","PERIOD"]
[327477452,1716103864439,-500.0,0.00019178,2]
[327477453,1716103864449,-500.0,0.00019178,2]
[327477454,1716103864459,-500.0,0.00019178,2]
[327477455,1716103864468,-500.0,0.00019178,2]
[327477456,1716103864478,-500.0,0.00019178,2]
[327477457,1716103864487,-500.0,0.00019178,2]
[327477458,1716103864497,-500.0,0.00019178,2]
[327477459,1716103864506,-500.0,0.00019178,2]
[327477460,1716103864516,-500.0,0.00019178,2]
[327477461,1716103864526,-500.0,0.00019178,2]
[327477462,1716103864536,-265.99325485,0.00019178,2]
[327477463,1716103864545,-500.0,0.00019178,2]
[327477464,1716103864633,-429.7734558,0.00019178,2]
[327477465,1716103864642,-152.54595215,0.00019178,2]
[327477466,1716103864651,-198.95902803,0.00019178,2]
[327477467,1716103864661,-500.0,0.00019178,2]
[327477468,1716103864670,-500.0,0.00019178,2]
[327477469,1716103864679,-500.0,0.00019178,2]
[327477470,1716103864689,-500.0,0.00019178,2]
[327477471,1716103864698,-500.0,0.00019178,2]
[327477472,1716103864707,-500.0,0.00019178,2]
[327477473,1716103864716,-500.0,0.00019178,2]
[327477474,1716103864726,-500.0,0.00019178,2]
[327477475,1716103864735,-500.0,0.00019178,2]
[327477476,1716103864745,-500.0,0.00019178,2]
[327477477,1716103864755,-500.0,0.00019178,2]
[327477478,1716103864764,-500.0,0.00019178,2]
[327477479,1716103864773,-500.0,0.00019178,2]
[327477480,1716103864783,-570.30605053,0.00019178,2]
[327477481,1716103864792,-500.0,0.00019178,2]
[327477482,1716103864801,-500.0,0.00019178,2]
[327477483,1716103864810,-500.0,0.00019178,2]
[327477484,1716103864819,-1438.61526767,0.00019178,2]
[327477485,1716103864828,-500.0,0.00019178,2]
[327477486,1716103864838,-500.0,0.00019178,2]
[327477487,1716103864847,-500.0,0.00019178,2]
[327477488,1716103864856,-500.0,0.00019178,2]
[327477489,1716103864866,-278.6337915,0.00019178,2]
[327477490,1716103864876,-500.0,0.00019178,2]
[327477491,1716103864885,-500.0,0.00019178,2]
[327477492,1716103864894,-500.0,0.00019178,2]
[327477493,1716103864903,-1016.84,0.00019178,2]
[327477494,1716103864912,-1484.68,0.00019178,2]
[327477495,1716103864922,-500.0,0.00019178,2]
[327477496,1716103864931,-646.71,0.00019178,2]
[327477497,1716103864940,-500.0,0.00019178,2]
[327477498,1716103864950,-500.0,0.00019178,2]
[327477499,1716103864960,-500.0,0.00019178,2]
[327477500,1716103864974,-573.0,0.00019178,2]
[327477501,1716103864994,-500.0,0.00019178,2]
[327477502,1716103865016,-841.18,0.00019178,2]
[327477503,1716103865025,-1269.35,0.00019178,2]
[327477504,1716103865034,-1065.39,0.00019178,2]
[327477505,1716103865044,-749.12,0.00019178,2]
[327477506,1716103865054,-500.0,0.00019178,2]
[327477507,1716103865063,-500.0,0.00019178,2]
[327477508,1716103865072,-500.18,0.00019178,2]
[327477509,1716103865082,-500.0,0.00019178,2]
[327477510,1716103865090,-2247.83,0.00019178,2]
[327477511,1716103865099,-500.0,0.00019178,2]
[327477512,1716103865108,-500.0,0.00019178,2]
[327477513,1716103865119,-500.0,0.00019178,2]
[327477514,1716103865129,-1011.76,0.00019178,2]
[327477515,1716103865138,-1091.31,0.00019178,2]
[327477516,1716103865147,-500.0,0.00019178,2]
[327477517,1716103865157,-743.63,0.00019178,2]
[327477518,1716103865168,-594.06,0.00019178,2]
[327477519,1716103865177,-500.0,0.00019178,2]
[327477520,1716103865186,-883.06,0.00019178,2]
[327477521,1716103865195,-1558.63,0.00019178,2]
[327477522,1716103865205,-500.0,0.00019178,2]
[327477523,1716103865214,-1609.31,0.00019178,2]
[327477524,1716103865223,-500.0,0.00019178,2]
[327477525,1716103865232,-500.0,0.00019178,2]
[327477526,1716103865244,-2797.75,0.00019178,2]
[327477527,1716103865253,-611.8,0.00019178,2]
[327477528,1716103865262,-1137.38,0.00019178,2]
[327477529,1716103865271,-500.0,0.00019178,2]
[327477530,1716103865280,-826.48,0.00019178,2]
[327477531,1716103865288,-1849.95,0.00019178,2]
[327477532,1716103865297,-2376.47,0.00019178,2]
[327477533,1716103865306,-2693.39,0.00019178,2]
[327477534,1716103865315,-1639.18,0.00019178,2]
[327477535,1716103865324,-1132.62,0.00019178,2]
[327477536,1716103865334,-500.0,0.00019178,2]
[327477537,1716103865344,-1329.91,0.00019178,2]
[327477538,1716103865353,-500.0,0.00019178,2]
[327477539,1716103865363,-500.0,0.00019178,2]
[327477540,1716103865373,-500.0,0.00019178,2]
[327477541,1716103865383,-598.6,0.00019178,2]
[327477542,1716103865392,-500.0,0.00019178,2]
[327477543,1716103865401,-500.0,0.00019178,2]
[327477544,1716103865411,-500.0,0.00019178,2]
[327477545,1716103865420,-500.0,0.00019178,2]
[327477546,1716103865429,-500.0,0.00019178,2]
[327477547,1716103865439,-379.39121589,0.00019178,2]
[327477548,1716103865448,-500.0,0.00019178,2]
[327477549,1716103865457,-500.0,0.00019178,2]
[327477550,1716103865466,-500.0,0.00019178,2]
[327477551,1716103865476,-500.0,0.00019178,2]
[327477552,1716103865486,-500.0,0.00019178,2]
[327477553,1716103865495,-500.0,0.00019178,2]
[327477554,1716103865504,-500.0,0.00019178,2]
[327477555,1716103865513,-573.18,0.00019178,2]
[327477556,1716103865522,-500.0,0.00019178,2]
[327477557,1716103865532,-42479.62,0.00019178,2]
[327477558,1716103865541,-1956.67,0.00019178,2]
[327477559,1716103865550,-716.18,0.00019178,2]
[327477560,1716103865559,-5178.93,0.00019178,2]
[327477561,1716103865569,-9192.61,0.00019178,2]
[327477562,1716103865579,-1368.82,0.00019178,2]
[327477563,1716103865589,-1593.19,0.00019178,2]
[327477564,1716103865598,-2341.24,0.00019178,2]
[327477565,1716103865665,-500.0,0.00019178,2]
[327477566,1716103865675,-500.0,0.00019178,2]
[327477567,1716103865685,-1198.04,0.00019178,2]
[327477568,1716103865694,-530.96,0.00019178,2]
[327477569,1716103865704,-24634.29,0.00019178,2]
[327477570,1716103865714,-1281.76,0.00019178,2]
[327477571,1716103865724,-721.22,0.00019178,2]
[327477572,1716103865734,-2072.77,0.00019178,2]
[327477573,1716103865743,-500.0,0.00019178,2]
[327477574,1716103865752,-1003.99,0.00019178,2]
[327477575,1716103865762,-5272.45,0.00019178,2]
[327477576,1716103865771,-500.0,0.00019178,2]
[327477577,1716103865781,-2106.61,0.00019178,2]
[327477578,1716103865790,-500.0,0.00019178,2]
[327477579,1716103865800,-818.43,0.00019178,2]
[327477580,1716103865809,-500.0,0.00019178,2]
[327477581,1716103865818,-2689.25,0.00019178,2]
[327477582,1716103865828,-500.0,0.00019178,2]
[327477583,1716103865837,-843.03,0.00019178,2]
[327477584,1716103865846,-500.0,0.00019178,2]
[327477585,1716103865856,-972.81,0.00019178,2]
[327477586,1716103865865,-1909.27,0.00019178,2]
[327477587,1716103865876,-1545.05,0.00019178,2]
[327477588,1716103865886,-2694.99,0.00019178,2]
[327477589,1716103865895,-654.12,0.00019178,2]
[327477590,1716103865905,-3670.68,0.00019178,2]
[327477591,1716103865914,-2455.19,0.00019178,2]
[327477592,1716103865924,-1059.89,0.00019178,2]
[327477593,1716103865933,-5999.56,0.00019178,2]
[327477594,1716103865942,-1647.54,0.00019178,2]
[327477595,1716103865952,-500.0,0.00019178,2]
[327477596,1716103865962,-568.91,0.00019178,2]
[327477597,1716103865971,-159.33247436,0.00019178,2]
[327477598,1716103865980,-2332.87,0.00019178,2]
[327477599,1716103865990,-660.52,0.00019178,2]
[327477600,1716103865999,-1707.02,0.00019178,2]
[327477601,1716103866009,-5805.35,0.00019178,2]
[327477602,1716103866019,-655.6,0.00019178,2]
[327477603,1716103866028,-1705.66,0.00019178,2]
[327477604,1716103866037,-664.76,0.00019178,2]
[327477605,1716103866047,-885.9,0.00019178,2]
[327477606,1716103866056,-503.94,0.00019178,2]
[327477607,1716103866065,-717.98,0.00019178,2]
[327477608,1716103866074,-6707.21,0.00019178,2]
[327477609,1716103866083,-500.0,0.00019178,2]
[327477610,1716103866093,-500.0,0.00019178,2]
[327477611,1716103866103,-10697.46,0.00019178,2]
[327477612,1716103866112,-1112.96,0.00019178,2]
[327477613,1716103866134,-500.0,0.00019178,2]
[327477614,1716103866151,-3567.06,0.00019178,2]
[327477615,1716103866175,-729.07,0.00019178,2]
[327477616,1716103866196,-1723.41,0.00019178,2]
[327477617,1716103866217,-321.932428,0.00019178,2]
[327477618,1716103866236,-153.775416,0.00019178,2]
[327477619,1716103866253,-262.58728536,0.00019211,2]
[327477620,1716103866268,-637.43954172,0.00019303,2]
[327477621,1716103866286,-155.98092403,0.00019432,2]
[327477622,1716103866308,-1016.84,0.00019452,2]
[327477623,1716103866323,-1484.68,0.00019452,2]
[327477624,1716103866340,-500.0,0.00019452,2]
[327477625,1716103866358,-646.71,0.00019452,2]
[327477626,1716103866378,-500.0,0.00019452,2]
[327477627,1716103866393,-278.13180887,0.00019452,2]
[327477628,1716103866411,-500.0,0.00019452,2]
[327477629,1716103866425,-573.0,0.00019452,2]
[327477630,1716103866441,-500.0,0.00019452,2]
[327477631,1716103866458,-841.18,0.00019452,2]
[327477632,1716103866473,-1269.35,0.00019452,2]
[327477633,1716103866489,-1065.39,0.00019452,2]
[327477634,1716103866506,-749.12,0.00019452,2]
[327477635,1716103866521,-437.18748866,0.00019452,2]
[327477636,1716103866537,-500.0,0.00019452,2]
[327477637,1716103866551,-500.18,0.00019452,2]
[327477638,1716103866565,-500.0,0.00019452,2]
[327477639,1716103866580,-2247.83,0.00019452,2]
[327477640,1716103866595,-500.0,0.00019452,2]
[327477641,1716103866609,-500.0,0.00019452,2]
[327477642,1716103866624,-500.0,0.00019452,2]
[327477643,1716103866639,-1011.76,0.00019452,2]
[327477644,1716103866653,-1091.31,0.00019452,2]
[327477645,1716103866668,-223.88108337,0.00019452,2]
[327477646,1716103866682,-743.63,0.00019452,2]
[327477647,1716103866696,-594.06,0.00019452,2]
[327477648,1716103866711,-500.0,0.00019452,2]
[327477649,1716103866726,-883.06,0.00019452,2]
[327477650,1716103866740,-1558.63,0.00019452,2]
[327477651,1716103866755,-500.0,0.00019452,2]
[327477652,1716103866769,-1609.31,0.00019452,2]
[327477653,1716103866784,-500.0,0.00019452,2]
[327477654,1716103866799,-500.0,0.00019452,2]
[327477655,1716103866814,-2797.75,0.00019452,2]
[327477656,1716103866828,-611.8,0.00019452,2]
[327477657,1716103866843,-1137.38,0.00019452,2]
[327477658,1716103866857,-500.0,0.00019452,2]
[327477659,1716103866955,-826.48,0.00019452,2]
[327477660,1716103866965,-1849.95,0.00019452,2]
[327477661,1716103866974,-2376.47,0.00019452,2]
[327477662,1716103866983,-2693.39,0.00019452,2]
[327477663,1716103866992,-1639.18,0.00019452,2]
[327477664,1716103867001,-1132.62,0.00019452,2]
[327477665,1716103867011,-500.0,0.00019452,2]
[327477666,1716103867022,-1329.91,0.00019452,2]
[327477667,1716103867032,-598.6,0.00019452,2]
[327477668,1716103867042,-500.0,0.00019452,2]
[327477669,1716103867053,-500.0,0.00019452,2]
[327477670,1716103867062,-500.0,0.00019452,2]
[327477671,1716103867072,-500.0,0.00019452,2]
[327477672,1716103867081,-607.02279867,0.00019452,2]
[327477673,1716103867090,-518.09589403,0.00019452,2]
[327477674,1716103867100,-500.0,0.00019452,2]
[327477675,1716103867109,-573.18,0.00019452,2]
[327477676,1716103867120,-500.0,0.00019452,2]
[327477677,1716103867129,-42479.62,0.00019452,2]
[327477678,1716103867138,-1956.67,0.00019452,2]
[327477679,1716103867147,-716.18,0.00019452,2]
[327477680,1716103867157,-5178.93,0.00019452,2]
[327477681,1716103867170,-9192.61,0.00019452,2]
[327477682,1716103867180,-1368.82,0.00019452,2]
[327477683,1716103867189,-1593.19,0.00019452,2]
[327477684,1716103867199,-2341.24,0.00019452,2]
[327477685,1716103867208,-500.0,0.00019452,2]
[327477686,1716103867217,-500.0,0.00019452,2]
[327477687,1716103867227,-1198.04,0.00019452,2]
[327477688,1716103867236,-530.96,0.00019452,2]
[327477689,1716103867245,-24634.29,0.00019452,2]
[327477690,1716103867256,-1281.76,0.00019452,2]
[327477691,1716103867265,-721.22,0.00019452,2]
[327477692,1716103867274,-2072.77,0.00019452,2]
[327477693,1716103867283,-500.0,0.00019452,2]
[327477694,1716103867292,-1003.99,0.00019452,2]
[327477695,1716103867302,-5272.45,0.00019452,2]
[327477696,1716103867311,-500.0,0.00019452,2]
[327477697,1716103867320,-2106.61,0.00019452,2]
[327477698,1716103867329,-500.0,0.00019452,2]
[327477699,1716103867339,-818.43,0.00019452,2]
[327477700,1716103867348,-500.0,0.00019452,2]
[327477701,1716103867357,-2689.25,0.00019452,2]
[327477702,1716103867366,-500.0,0.00019452,2]
[327477703,1716103867378,-843.03,0.00019452,2]
[327477704,1716103867387,-500.0,0.00019452,2]
[327477705,1716103867396,-972.81,0.00019452,2]
[327477706,1716103867412,-1909.27,0.00019452,2]
[327477707,1716103867426,-1545.05,0.00019452,2]
[327477708,1716103867435,-2694.99,0.00019452,2]
[327477709,1716103867446,-654.12,0.00019452,2]
[327477710,1716103867464,-3670.68,0.00019452,2]
[327477711,1716103867474,-2455.19,0.00019452,2]
[327477712,1716103867483,-1059.89,0.00019452,2]
[327477713,1716103867492,-5999.56,0.00019452,2]
[327477714,1716103867502,-1647.54,0.00019452,2]
[327477715,1716103867511,-500.0,0.00019452,2]
[327477716,1716103867521,-568.91,0.00019452,2]
[327477717,1716103867530,-2332.87,0.00019452,2]
[327477718,1716103867539,-660.52,0.00019452,2]
[327477719,1716103867549,-1707.02,0.00019452,2]
[327477720,1716103867559,-5805.35,0.00019452,2]
[327477721,1716103867568,-655.6,0.00019452,2]
[327477722,1716103867578,-1705.66,0.00019452,2]
[327477723,1716103867587,-664.76,0.00019452,2]
[327477724,1716103867596,-885.9,0.00019452,2]
[327477725,1716103867605,-503.94,0.00019452,2]
[327477726,1716103867614,-717.98,0.00019452,2]
[327477727,1716103867624,-6707.21,0.00019452,2]
[327477728,1716103867634,-500.0,0.00019452,2]
[327477729,1716103867644,-249.36,0.00019452,2]
[327477730,1716103867654,-10697.46,0.00019452,2]
[327477731,1716103867665,-1112.96,0.00019452,2]
[327477732,1716103867674,-500.0,0.00019452,2]
[327477733,1716103867683,-3567.06,0.00019452,2]
[327477734,1716103867693,-729.07,0.00019452,2]
[327477735,1716103867702,-1723.41,0.00019452,2]
[327477736,1716103867711,-1016.84,0.00019726,2]
[327477737,1716103867721,-1484.68,0.00019726,2]
[327477738,1716103867730,-500.0,0.00019726,2]
[327477739,1716103867740,-646.71,0.00019726,2]
[327477740,1716103867749,-500.0,0.00019726,2]
[327477741,1716103867759,-500.0,0.00019726,2]
[327477742,1716103867768,-573.0,0.00019726,2]
[327477743,1716103867778,-500.0,0.00019726,2]
[327477744,1716103867787,-841.18,0.00019726,2]
[327477745,1716103867797,-1269.35,0.00019726,2]
[327477746,1716103867807,-1065.39,0.00019726,2]
[327477747,1716103867817,-749.12,0.00019726,2]
[327477748,1716103867826,-500.0,0.00019726,2]
[327477749,1716103867836,-500.18,0.00019726,2]
[327477750,1716103867845,-500.0,0.00019726,2]
[327477751,1716103867855,-2247.83,0.00019726,2]
[327477752,1716103867865,-467.01841665,0.00019726,2]
[327477753,1716103867876,-500.0,0.00019726,2]
[327477754,1716103867885,-283.75956888,0.00019726,2]
[327477755,1716103867894,-1011.76,0.00019726,2]
[327477756,1716103867904,-1091.31,0.00019726,2]
[327477757,1716103867914,-743.63,0.00019726,2]
[327477758,1716103867924,-594.06,0.00019726,2]
[327477759,1716103867933,-500.0,0.00019726,2]
[327477760,1716103867943,-883.06,0.00019726,2]
[327477761,1716103867953,-1558.63,0.00019726,2]
[327477762,1716103867962,-500.0,0.00019726,2]
[327477763,1716103867971,-1609.31,0.00019726,2]
[327477764,1716103867981,-500.0,0.00019726,2]
[327477765,1716103867991,-500.0,0.00019726,2]
[327477766,1716103868000,-2797.75,0.00019726,2]
[327477767,1716103868011,-611.8,0.00019726,2]
[327477768,1716103868020,-1137.38,0.00019726,2]
[327477769,1716103868029,-500.0,0.00019726,2]
[327477770,1716103868039,-826.48,0.00019726,2]
[327477771,1716103868048,-1849.95,0.00019726,2]
[327477772,1716103868058,-2376.47,0.00019726,2]
[327477773,1716103868067,-2693.39,0.00019726,2]
[327477774,1716103868077,-1639.18,0.00019726,2]
[327477775,1716103868086,-1132.62,0.00019726,2]
[327477776,1716103868095,-500.0,0.00019726,2]
[327477777,1716103868105,-1329.91,0.00019726,2]
[327477778,1716103868114,-598.6,0.00019726,2]
[327477779,1716103868124,-500.0,0.00019726,2]
[327477780,1716103868133,-500.0,0.00019726,2]
[327477781,1716103868143,-500.0,0.00019726,2]
[327477782,1716103868154,-500.0,0.00019726,2]
[327477783,1716103868167,-500.0,0.00019726,2]
[327477784,1716103868177,-573.18,0.00019726,2]
[327477785,1716103868186,-500.0,0.00019726,2]
[327477786,1716103868261,-42479.62,0.00019726,2]
[327477787,1716103868271,-1956.67,0.00019726,2]
[327477788,1716103868281,-716.18,0.00019726,2]
[327477789,1716103868290,-5178.93,0.00019726,2]
[327477790,1716103868300,-9192.61,0.00019726,2]
[327477791,1716103868309,-1368.82,0.00019726,2]
[327477792,1716103868319,-1593.19,0.00019726,2]
[327477793,1716103868329,-2341.24,0.00019726,2]
[327477794,1716103868339,-557.71071004,0.00019726,2]
[327477795,1716103868348,-500.0,0.00019726,2]
[327477796,1716103868358,-1198.04,0.00019726,2]
[327477797,1716103868367,-530.96,0.00019726,2]
[327477798,1716103868378,-24634.29,0.00019726,2]
[327477799,1716103868387,-1281.76,0.00019726,2]
[327477800,1716103868396,-721.22,0.00019726,2]
[327477801,1716103868407,-2072.77,0.00019726,2]
[327477802,1716103868416,-500.0,0.00019726,2]
[327477803,1716103868426,-1003.99,0.00019726,2]
[327477804,1716103868437,-5272.45,0.00019726,2]
[327477805,1716103868447,-500.0,0.00019726,2]
[327477806,1716103868457,-2106.61,0.00019726,2]
[327477807,1716103868467,-500.0,0.00019726,2]
[327477808,1716103868476,-818.43,0.00019726,2]
[327477809,1716103868485,-500.0,0.00019726,2]
[327477810,1716103868494,-2689.25,0.00019726,2]
[327477811,1716103868504,-500.0,0.00019726,2]
[327477812,1716103868513,-843.03,0.00019726,2]
[327477813,1716103868523,-500.0,0.00019726,2]
[327477814,1716103868532,-972.81,0.00019726,2]
[327477815,1716103868542,-1909.27,0.00019726,2]
[327477816,1716103868551,-1545.05,0.00019726,2]
[327477817,1716103868560,-2694.99,0.00019726,2]
[327477818,1716103868569,-654.12,0.00019726,2]
[327477819,1716103868580,-3670.68,0.00019726,2]
[327477820,1716103868590,-2455.19,0.00019726,2]
[327477821,1716103868600,-1059.89,0.00019726,2]
[327477822,1716103868609,-5999.56,0.00019726,2]
[327477823,1716103868620,-1647.54,0.00019726,2]
[327477824,1716103868630,-500.0,0.00019726,2]
[327477825,1716103868639,-568.91,0.00019726,2]
[327477826,1716103868650,-2332.87,0.00019726,2]
[327477827,1716103868659,-660.52,0.00019726,2]
[327477828,1716103868669,-1707.02,0.00019726,2]
[327477829,1716103868679,-5805.35,0.00019726,2]
[327477830,1716103868689,-655.6,0.00019726,2]
[327477831,1716103868698,-1705.66,0.00019726,2]
[327477832,1716103868709,-664.76,0.00019726,2]
[327477833,1716103868720,-885.9,0.00019726,2]
[327477834,1716103868729,-503.94,0.00019726,2]
[327477835,1716103868740,-717.98,0.00019726,2]
[327477836,1716103868750,-6707.21,0.00019726,2]
[327477837,1716103868760,-500.0,0.00019726,2]
[327477838,1716103868769,-10697.46,0.00019726,2]
[327477839,1716103868779,-1112.96,0.00019726,2]
[327477840,1716103868788,-500.0,0.00019726,2]
[327477841,1716103868798,-3567.06,0.00019726,2]
[327477842,1716103868807,-729.07,0.00019726,2]
[327477843,1716103868816,-1723.41,0.00019726,2]
[327477844,1716103868825,-474.17632275,0.000199,2]
[327477845,1716103868834,-20012.62072287,0.00019948,2]
[327477846,1716103868843,-400.0,0.0002,2]
[327477847,1716103868853,-235000.45481628,0.0002,2]
[327477848,1716103868862,-264.41737801,0.0002,2]
[327477849,1716103868871,-167.07553992,0.0002,2]
[327477850,1716103868880,-154.7215013,0.0002,2]
[327477851,1716103868890,-5408.14506506,0.0002,2]
[327477852,1716103868899,-240.29660698,0.0002,2]
[327477853,1716103868908,-151.0,0.0002,2]
[327477854,1716103868918,-1446.23698675,0.0002,2]
[327477855,1716103868927,-6450.15345739,0.0002,2]
[327477856,1716103868936,-69718.22009244,0.0002,2]
[327477857,1716103868945,-178.5,0.0002,2]
[327477858,1716103868955,-4595.97506669,0.0002,2]
[327477859,1716103868964,-555.56254189,0.0002,2]
[327477860,1716103868973,-154.86062544,0.0002,2]
[327477861,1716103868982,-5000.0,0.0002,2]
[327477862,1716103868991,-291.0,0.0002,2]
[327477863,1716103869000,-1016.84,0.0002,2]
[327477864,1716103869010,-1484.68,0.0002,2]
[327477865,1716103869019,-500.0,0.0002,2]
[327477866,1716103869029,-646.71,0.0002,2]
[327477867,1716103869038,-500.0,0.0002,2]
[327477868,1716103869048,-500.0,0.0002,2]
[327477869,1716103869057,-573.0,0.0002,2]
[327477870,1716103869066,-537.15595207,0.0002,2]
[327477871,1716103869077,-841.18,0.0002,2]
[327477872,1716103869086,-1269.35,0.0002,2]
[327477873,1716103869095,-1065.39,0.0002,2]
[327477874,1716103869105,-749.12,0.0002,2]
[327477875,1716103869114,-500.0,0.0002,2]
[327477876,1716103869123,-500.18,0.0002,2]
[327477877,1716103869133,-500.0,0.0002,2]
[327477878,1716103869143,-2247.83,0.0002,2]
[327477879,1716103869153,-500.0,0.0002,2]
[327477880,1716103869167,-1011.76,0.0002,2]
[327477881,1716103869177,-1091.31,0.0002,2]
[327477882,1716103869186,-743.63,0.0002,2]
[327477883,1716103869196,-594.06,0.0002,2]
[327477884,1716103869205,-500.0,0.0002,2]
[327477885,1716103869215,-883.06,0.0002,2]
[327477886,1716103869224,-1558.63,0.0002,2]
[327477887,1716103869233,-500.0,0.0002,2]
[327477888,1716103869243,-1609.31,0.0002,2]
[327477889,1716103869252,-500.0,0.0002,2]
[327477890,1716103869262,-500.0,0.0002,2]
[327477891,1716103869272,-2797.75,0.0002,2]
[327477892,1716103869281,-611.8,0.0002,2]
[327477893,1716103869291,-1137.38,0.0002,2]
[327477894,1716103869300,-500.0,0.0002,2]
[327477895,1716103869309,-826.48,0.0002,2]
[327477896,1716103869319,-1849.95,0.0002,2]
[327477897,1716103869329,-2376.47,0.0002,2]
[327477898,1716103869338,-2693.39,0.0002,2]
[327477899,1716103869348,-1639.18,0.0002,2]
[327477900,1716103869358,-1132.62,0.0002,2]
[327477901,1716103869367,-194.58958557,0.0002,2]
[327477902,1716103869377,-151.34866798,0.0002,2]
[327477903,1716103869387,-1329.91,0.0002,2]
[327477904,1716103869461,-598.6,0.0002,2]
[327477905,1716103869470,-500.0,0.0002,2]
[327477906,1716103869480,-500.0,0.0002,2]
[327477907,1716103869490,-500.0,0.0002,2]
[327477908,1716103869499,-500.0,0.0002,2]
[327477909,1716103869508,-324.27027892,0.0002,2]
[327477910,1716103869518,-573.18,0.0002,2]
[327477911,1716103869527,-500.0,0.0002,2]
[327477912,1716103869536,-42479.62,0.0002,2]
[327477913,1716103869545,-1956.67,0.0002,2]
[327477914,1716103869554,-716.18,0.0002,2]
[327477915,1716103869563,-5178.93,0.0002,2]
[327477916,1716103869572,-9192.61,0.0002,2]
[327477917,1716103869581,-1368.82,0.0002,2]
[327477918,1716103869591,-1593.19,0.0002,2]
[327477919,1716103869601,-2341.24,0.0002,2]
[327477920,1716103869610,-500.0,0.0002,2]
[327477921,1716103869619,-1198.04,0.0002,2]
[327477922,1716103869631,-200.0,0.0002,2]
[327477923,1716103869640,-530.96,0.0002,2]
[327477924,1716103869649,-24634.29,0.0002,2]
[327477925,1716103869659,-1281.76,0.0002,2]
[327477926,1716103869669,-721.22,0.0002,2]
[327477927,1716103869678,-2072.77,0.0002,2]
[327477928,1716103869687,-500.0,0.0002,2]
[327477929,1716103869697,-1003.99,0.0002,2]
[327477930,1716103869707,-5272.45,0.0002,2]
[327477931,1716103869716,-500.0,0.0002,2]
[327477932,1716103869726,-2106.61,0.0002,2]
[327477933,1716103869735,-500.0,0.0002,2]
[327477934,1716103869744,-818.43,0.0002,2]
[327477935,1716103869753,-500.0,0.0002,2]
[327477936,1716103869762,-2689.25,0.0002,2]
[327477937,1716103869771,-500.0,0.0002,2]
[327477938,1716103869781,-843.03,0.0002,2]
[327477939,1716103869790,-500.0,0.0002,2]
[327477940,1716103869800,-972.81,0.0002,2]
[327477941,1716103869809,-1909.27,0.0002,2]
[327477942,1716103869819,-1545.05,0.0002,2]
[327477943,1716103869828,-2694.99,0.0002,2]
[327477944,1716103869837,-654.12,0.0002,2]
[327477945,1716103869847,-3670.68,0.0002,2]
[327477946,1716103869856,-2455.19,0.0002,2]
[327477947,1716103869865,-1059.89,0.0002,2]
[327477948,1716103869876,-5999.56,0.0002,2]
[327477949,1716103869886,-1647.54,0.0002,2]
[327477950,1716103869895,-500.0,0.0002,2]
[327477951,1716103869905,-568.91,0.0002,2]